bitfinex-derivatives/quotes_SOLF0:USTF0_20260108
["timestamp","ask_amount","ask_price","bid_price","bid_amount"]
[1767853958523,0.04979831,135.18,135.12,0.32589371]
[1767853958817,5.41931748,135.17,135.12,0.32589371]
[1767853959009,0.04979831,135.18,135.12,0.32589371]
[1767853959206,5.41930816,135.17,135.12,0.32589371]
[1767853959417,0.04979831,135.18,135.12,0.32589371]
[1767853959608,5.41822132,135.17,135.12,0.32589371]
[1767853959810,0.04979831,135.18,135.12,0.32589371]
[1767853960011,5.41822055,135.17,135.12,0.32589371]
[1767853960211,0.04979831,135.18,135.12,0.32589371]
[1767853962016,0.04979831,135.18,135.14,0.32589371]
[1767853963614,0.04979831,135.18,135.11,9.59521556]
[1767853963816,0.04979831,135.18,135.12,87.76589371]
[1767853965313,0.04979831,135.18,135.13,0.32589371]
[1767853967311,6.6644,135.21,135.13,0.32589371]
[1767853967514,10.83147452,135.2,135.14,0.04742822]
[1767853967727,6.6644,135.21,135.14,0.04742822]
[1767853967917,10.83147452,135.2,135.14,0.04742822]
[1767853968124,6.6644,135.21,135.14,0.04742822]
[1767853968322,10.82928829,135.2,135.14,0.04742822]
[1767853968526,6.6644,135.21,135.14,0.04742822]
[1767853968826,10.82892155,135.2,135.14,0.04742822]
[1767853969121,6.6644,135.21,135.14,0.04742822]
[1767853969429,5.40490201,135.2,135.14,0.04742822]
[1767853969627,6.6644,135.21,135.14,0.04742822]
[1767853969825,6.6637,135.22,135.15,2.92631556]
[1767853970017,6.6637,135.22,135.15,3.25220927]
[1767853970618,6.6637,135.22,135.17,0.05044383]
[1767853973416,2.92631556,135.26,135.17,0.05044383]
[1767853973723,10.81562311,135.25,135.17,0.05044383]
[1767853973919,191.103,135.27,135.17,0.30065058]
[1767853974127,10.81635663,135.26,135.17,0.30065058]
[1767853974323,5.39916433,135.25,135.2,0.04687071]
[1767853974623,191.103,135.27,135.2,0.04687071]
[1767853974825,10.81250541,135.26,135.2,0.04687071]
[1767853975023,191.103,135.27,135.2,0.04687071]
[1767853975024,5.39712124,135.25,135.2,0.04687071]
[1767853975221,6.6627,135.24,135.2,0.04687071]
[1767853975820,191.103,135.27,135.2,0.04687071]
[1767853975821,6.6618,135.26,135.2,0.04687071]
[1767853977025,90.40631556,135.3,135.2,0.04687071]
[1767853977226,10.80143031,135.29,135.2,0.34752129]
[1767853977428,90.40631556,135.3,135.2,0.30065058]
[1767853977729,6.6613,135.27,135.2,0.30065058]
[1767853977914,6.6613,135.27,135.23,0.04883601]
[1767853978315,103.6214,135.27,135.18,0.30065058]
[1767853978527,0.04929507,135.26,135.18,0.30065058]
[1767853979528,6.6628,135.24,135.18,0.30065058]
[1767853980124,103.6145,135.28,135.18,0.30065058]
[1767853980125,6.6618,135.26,135.18,0.30065058]
[1767853980528,6.6618,135.26,135.19,0.30065058]
[1767853980827,105.49160693,135.27,135.21,0.05210129]
[1767853981133,5.38395244,135.26,135.17,0.30065058]
[1767853981430,105.49160693,135.27,135.17,0.30065058]
[1767853981630,1.86930693,135.27,135.17,0.30065058]
[1767853981834,105.47390693,135.29,135.19,0.30065058]
[1767853982027,5.38315917,135.28,135.19,0.30065058]
[1767853982335,1.86930693,135.31,135.21,0.32006714]
[1767853982526,1.86930693,135.31,135.23,0.32006714]
[1767853982832,1.86930693,135.33,135.23,0.32006714]
[1767853983031,5.38258266,135.32,135.23,87.72006714]
[1767853983330,6.6592,135.31,135.24,0.32006714]
[1767853984239,6.6592,135.31,135.24,6.98266714]
[1767853984530,8.52790693,135.33,135.25,0.32006714]
[1767853984833,6.6586,135.33,135.25,0.32006714]
[1767853986339,6.6586,135.33,135.25,6.98206714]
[1767853987230,6.6586,135.33,135.26,0.32006714]
[1767853989528,6.6586,135.33,135.28,0.04908446]
[1767853990642,6.6588,135.32,135.28,0.04908446]
[1767853994233,105.43000693,135.35,135.28,0.04908446]
[1767853994234,6.6585,135.33,135.28,0.04908446]
[1767853999342,6.6587,135.32,135.28,0.04908446]
[1767853999542,1.86930693,135.33,135.28,0.04908446]
[1767854000345,6.6588,135.32,135.28,0.04908446]
[1767854002852,1.86930693,135.31,135.23,0.33257269]
[1767854003044,1.92088667,135.31,135.23,0.33257269]
[1767854003445,8.58008667,135.31,135.23,6.99567269]
[1767854003753,6.71077974,135.31,135.23,6.99567269]
[1767854004844,6.66,135.3,135.23,0.33257269]
[1767854005649,0.05264061,135.28,135.23,0.33257269]
[1767854006546,0.05264061,135.28,135.23,6.99567269]
[1767854007352,0.05264061,135.28,135.24,0.33257269]
[1767854008245,89.26930693,135.33,135.24,0.33257269]
[1767854008448,89.26930693,135.33,135.25,0.05036252]
[1767854008750,6.6596,135.31,135.25,0.05036252]
[1767854008955,105.43110693,135.35,135.25,2.25224214]
[1767854009245,6.6586,135.33,135.26,0.33257269]
[1767854009751,6.6586,135.33,135.28,0.04665243]
[1767854009950,6.6587,135.32,135.28,0.04665243]
[1767854011148,6.6581,135.34,135.28,0.04665243]
[1767854011551,1.86930693,135.35,135.28,0.04665243]
[1767854011852,10.74278961,135.34,135.28,0.04665243]
[1767854012050,1.86930693,135.35,135.28,0.04665243]
[1767854012250,10.74510188,135.34,135.28,0.04665243]
[1767854012451,5.40073405,135.33,135.28,0.04665243]
[1767854012648,1.86930693,135.33,135.28,0.04665243]
[1767854012851,1.86930693,135.31,135.2,0.31122671]
[1767854013051,1.86930693,135.29,135.21,0.31122671]
[1767854013755,6.6596,135.31,135.22,6.97442671]
[1767854013944,10.75202053,135.3,135.22,6.97442671]
[1767854014150,0.04767769,135.26,135.22,6.97442671]
[1767854014352,8.52890693,135.31,135.22,6.97442671]
[1767854014539,10.75979606,135.3,135.25,0.04801433]
[1767854014737,8.52890693,135.31,135.25,0.04801433]
[1767854014937,17.4195918,135.3,135.25,0.04801433]
[1767854015149,6.6598,135.3,135.25,0.04801433]
[1767854015752,6.6602,135.29,135.25,0.04801433]
[1767854016249,1.86930693,135.29,135.2,0.31122671]
[1767854016450,1.86930693,135.27,135.2,0.31122671]
[1767854017547,0.05015865,135.25,135.2,0.31122671]
[1767854020353,0.05015865,135.25,135.21,0.31122671]
[1767854022356,1.86930693,135.29,135.22,0.31122671]
[1767854022357,6.6602,135.29,135.22,0.31122671]
[1767854022550,6.6602,135.29,135.22,0.36495518]
[1767854024065,1.86930693,135.3,135.22,0.36495518]
[1767854024255,10.78267275,135.29,135.22,0.36495518]
[1767854024456,1.86930693,135.3,135.22,0.36495518]
[1767854024755,10.78418386,135.29,135.22,0.36495518]
[1767854025053,89.26930693,135.31,135.22,0.36495518]
[1767854025254,10.78794552,135.3,135.22,0.36495518]
[1767854025561,10.78794552,135.29,135.22,6.97482671]
[1767854025853,6.6597,135.3,135.22,6.97482671]
[1767854026049,10.78871026,135.29,135.25,0.05449984]
[1767854026251,5.36680854,135.28,135.25,0.05449984]
[1767854026457,6.6597,135.3,135.25,0.05449984]
[1767854026651,10.79351163,135.29,135.25,0.05449984]
[1767854026859,5.36689077,135.28,135.25,0.05449984]
[1767854027055,6.6597,135.3,135.25,0.05449984]
[1767854027259,10.79354868,135.29,135.25,0.05449984]
[1767854027461,5.36690921,135.28,135.25,0.05449984]
[1767854027651,6.6597,135.3,135.25,0.05449984]
[1767854027856,10.79513609,135.29,135.25,0.05449984]
[1767854028053,5.36769163,135.28,135.25,0.05449984]
[1767854028254,6.6597,135.3,135.25,0.05449984]
[1767854028455,10.79481536,135.29,135.25,0.05449984]
[1767854028655,5.36753415,135.28,135.25,0.05449984]
[1767854028864,6.6597,135.3,135.25,0.05449984]
[1767854029062,10.79481536,135.29,135.25,0.05449984]
[1767854029255,5.36753415,135.28,135.25,0.05449984]
[1767854029460,6.6597,135.3,135.25,0.05449984]
[1767854029667,10.79390491,135.29,135.25,0.05449984]
[1767854029964,10.79390491,135.28,135.25,0.05449984]
[1767854030262,6.6597,135.3,135.25,0.05449984]
[1767854030456,10.7934821,135.29,135.25,0.05449984]
[1767854030655,10.7934821,135.28,135.25,0.05449984]
[1767854030862,6.71152001,135.29,135.22,6.97482671]
[1767854031163,10.7934645,135.28,135.22,6.97482671]
[1767854031361,6.71152001,135.29,135.22,6.97482671]
[1767854031662,10.79339244,135.28,135.22,6.97482671]
[1767854031867,6.71152001,135.29,135.22,6.97482671]
[1767854032054,10.79073479,135.28,135.22,6.97482671]
[1767854032252,6.71152001,135.29,135.22,0.31122671]
[1767854032455,10.79076613,135.28,135.22,0.31122671]
[1767854032652,6.71152001,135.29,135.22,0.31122671]
[1767854032865,10.78999815,135.28,135.22,0.31122671]
[1767854033065,6.71152001,135.29,135.22,0.31122671]
[1767854033256,17.45069815,135.28,135.22,0.31122671]
[1767854033456,6.6607,135.28,135.22,0.31122671]
[1767854037370,0.05112001,135.29,135.22,6.97482671]
[1767854037573,0.05112001,135.29,135.23,0.31122671]
[1767854037878,6.71132001,135.29,135.23,0.31122671]
[1767854038368,0.05112001,135.29,135.23,0.31122671]
[1767854038568,6.71142001,135.29,135.23,0.31122671]
[1767854038973,0.05112001,135.29,135.23,0.31122671]
[1767854041478,0.05112001,135.29,135.23,6.97422671]
[1767854042474,0.05112001,135.29,135.25,0.30475402]
[1767854043677,0.05112001,135.29,135.25,6.96685402]
[1767854043879,6.6588,135.32,135.25,6.96685402]
[1767854044082,5.36829785,135.31,135.26,0.04914459]
[1767854044280,6.6588,135.32,135.26,0.04914459]
[1767854044482,5.36857233,135.31,135.26,0.04914459]
[1767854044680,6.6588,135.32,135.26,0.04914459]
[1767854044881,5.36765436,135.31,135.26,0.04914459]
[1767854045085,6.6588,135.32,135.26,0.04914459]
[1767854045282,10.781994,135.31,135.26,0.04914459]
[1767854045484,6.6588,135.32,135.26,0.04914459]
[1767854045682,5.36726482,135.31,135.26,0.04914459]
[1767854045880,6.6588,135.32,135.26,0.04914459]
[1767854046085,10.78129992,135.31,135.26,0.04914459]
[1767854046282,6.6588,135.32,135.26,0.04914459]
[1767854046585,10.78203209,135.31,135.26,0.04914459]
[1767854046787,6.6588,135.32,135.26,0.04914459]
[1767854047082,5.36745742,135.31,135.26,0.04914459]
[1767854047283,10.78083541,135.3,135.26,0.04914459]
[1767854047478,103.5728,135.33,135.26,0.04914459]
[1767854047683,10.78124949,135.32,135.26,0.04914459]
[1767854047884,6.6597,135.3,135.26,0.04914459]
[1767854048085,5.36745918,135.29,135.26,0.04914459]
[1767854048392,6.6597,135.3,135.26,0.04914459]
[1767854049489,6.6602,135.29,135.26,0.04914459]
[1767854049680,6.6602,135.29,135.23,87.66475402]
[1767854049987,6.71454164,135.29,135.23,87.66475402]
[1767854050293,6.71454164,135.29,135.23,0.30475402]
[1767854051180,6.6607,135.28,135.23,0.30475402]
[1767854053808,0.05434164,135.29,135.23,0.30475402]
[1767854054096,190.9901,135.34,135.25,0.32714287]
[1767854054295,10.76726605,135.33,135.25,0.32714287]
[1767854054502,10.76726605,135.32,135.25,0.38307992]
[1767854054797,190.9901,135.34,135.25,0.38307992]
[1767854054999,10.76761872,135.33,135.25,0.32714287]
[1767854055192,6.6592,135.31,135.25,0.32714287]
[1767854055394,6.6592,135.31,135.28,0.05339468]
[1767854058199,6.6592,135.31,135.25,0.32714287]
[1767854058200,6.6597,135.3,135.23,0.32714287]
[1767854058399,6.6597,135.3,135.24,0.32714287]
[1767854058600,0.05365027,135.31,135.24,0.32714287]
[1767854059698,0.05365027,135.31,135.24,6.98974287]
[1767854059902,0.05365027,135.31,135.25,0.32714287]
[1767854059903,6.71285027,135.31,135.25,0.32714287]
[1767854062394,6.6597,135.3,135.23,87.68714287]
[1767854063597,0.04911549,135.28,135.23,94.35024287]
[1767854064498,6.6597,135.3,135.23,94.35024287]
[1767854064803,6.6597,135.3,135.24,0.04846863]
[1767854065707,6.6591,135.32,135.24,0.3756115]
[1767854066006,5.35063099,135.31,135.25,0.32714287]
[1767854066200,6.6591,135.32,135.25,0.32714287]
[1767854066401,10.76780313,135.31,135.24,6.6625]
[1767854066602,6.6591,135.32,135.27,0.04728564]
[1767854066801,10.76684164,135.31,135.27,0.04728564]
[1767854066999,6.6591,135.32,135.27,0.04728564]
[1767854067199,10.76694507,135.31,135.27,0.04728564]
[1767854067402,6.6591,135.32,135.27,0.04728564]
[1767854067704,10.76749341,135.31,135.27,0.04728564]
[1767854067902,6.6591,135.32,135.27,0.04728564]
[1767854068105,10.76732525,135.31,135.27,0.04728564]
[1767854068407,2.91854,135.34,135.27,0.04728564]
[1767854068606,10.76842202,135.33,135.27,0.04728564]
[1767854068798,10.76842202,135.32,135.27,0.04728564]
[1767854069108,5.35155893,135.31,135.27,0.04728564]
[1767854069308,2.91854,135.34,135.27,0.04728564]
[1767854069505,10.76915072,135.33,135.27,0.04728564]
[1767854069697,10.76915072,135.32,135.27,0.04728564]
[1767854070009,6.6582,135.33,135.27,0.04728564]
[1767854070208,10.768849,135.32,135.24,87.36]
[1767854070505,10.81646567,135.31,135.24,87.36]
[1767854070710,12.0113409,135.3,135.23,94.35014287]
[1767854071005,6.6598,135.3,135.23,94.35014287]
[1767854071605,0.04990298,135.28,135.23,94.35014287]
[1767854072514,6.6598,135.3,135.24,0.31133193]
[1767854072809,5.35150822,135.29,135.24,0.35859086]
[1767854073011,6.6598,135.3,135.24,0.35859086]
[1767854073209,6.6589,135.32,135.24,0.35859086]
[1767854073515,10.7695787,135.31,135.24,0.35859086]
[1767854073714,5.35198828,135.3,135.24,0.31133193]
[1767854073911,6.6589,135.32,135.24,0.31133193]
[1767854074212,10.76962135,135.31,135.26,0.05645014]
[1767854074411,6.6589,135.32,135.26,0.36778207]
[1767854074606,5.3524701,135.31,135.26,0.36778207]
[1767854074807,6.6589,135.32,135.26,0.36778207]
[1767854075113,5.35243783,135.31,135.26,0.36778207]
[1767854075316,6.6589,135.32,135.26,0.36778207]
[1767854075517,5.35261871,135.31,135.26,0.36778207]
[1767854075710,6.6589,135.32,135.26,0.36778207]
[1767854075910,5.3526253,135.31,135.26,0.36778207]
[1767854076114,6.6589,135.32,135.26,0.36778207]
[1767854076312,5.35289649,135.31,135.26,7.02938207]
[1767854076517,6.658,135.34,135.27,0.31133193]
[1767854076715,10.75078593,135.33,135.27,0.31133193]
[1767854076918,5.35309939,135.32,135.27,0.31133193]
[1767854077116,6.658,135.34,135.29,0.05064895]
[1767854077319,10.75000408,135.33,135.29,0.05064895]
[1767854077515,5.35297731,135.32,135.29,0.05064895]
[1767854077719,6.6587,135.32,135.26,87.34]
[1767854078022,0.04696558,135.33,135.25,0.31133193]
[1767854078212,10.7496706,135.32,135.25,87.65133193]
[1767854078413,119.76643195,135.36,135.25,87.65133193]
[1767854078619,10.75055813,135.35,135.25,87.65133193]
[1767854078827,10.75055813,135.34,135.25,87.65133193]
[1767854079011,0.04989102,135.32,135.25,87.65133193]
[1767854079626,0.04989102,135.32,135.25,94.31313193]
[1767854080016,0.04989102,135.32,135.26,0.31133193]
[1767854081323,5.35306135,135.31,135.26,0.31133193]
[1767854081523,0.04989102,135.32,135.26,0.31133193]
[1767854081731,5.35393102,135.31,135.26,0.31133193]
[1767854082019,0.04989102,135.32,135.26,0.31133193]
[1767854082224,5.3538591,135.31,135.26,0.31133193]
[1767854082422,6.70859102,135.32,135.26,0.31133193]
[1767854082724,6.70859102,135.32,135.25,87.34]
[1767854082725,10.75231198,135.31,135.25,87.34]
[1767854082927,6.70859102,135.32,135.25,87.65133193]
[1767854083120,10.739366,135.31,135.25,94.31343193]
[1767854083312,6.70859102,135.32,135.25,94.31343193]
[1767854083516,5.34158041,135.31,135.25,94.31343193]
[1767854083719,6.70859102,135.32,135.25,94.31343193]
[1767854083920,10.7400752,135.31,135.25,94.31343193]
[1767854084223,6.70859102,135.32,135.25,6.97343193]
[1767854084425,10.74126672,135.31,135.25,94.31343193]
[1767854084629,6.70859102,135.32,135.25,94.31343193]
[1767854084822,0.04989102,135.32,135.25,94.31343193]
[1767854085520,0.04989102,135.32,135.26,0.31133193]
[1767854088332,0.04989102,135.32,135.27,0.31133193]
[1767854095232,0.04989102,135.32,135.25,0.31133193]
[1767854095530,10.71975726,135.31,135.23,0.31133193]
[1767854095835,10.71975726,135.3,135.24,0.31133193]
[1767854096039,103.585,135.32,135.24,0.31133193]
[1767854096331,0.05431262,135.28,135.24,0.31133193]
[1767854098932,6.71511262,135.28,135.24,0.31133193]
[1767854099234,0.05431262,135.28,135.24,0.31133193]
[1767854104635,0.05431262,135.28,135.25,1.86793593]
[1767854104938,0.05431262,135.28,135.25,2.18513324]
[1767854105142,0.05431262,135.28,135.23,2.18513324]
[1767854105442,0.05431262,135.28,135.24,0.31719731]
[1767854105641,0.05431262,135.28,135.25,1.86793593]
[1767854105837,103.5798,135.33,135.25,1.86793593]
[1767854106041,10.71444963,135.32,135.25,1.91599379]
[1767854106235,10.71444963,135.31,135.25,1.91599379]
[1767854106442,103.5798,135.33,135.25,1.91599379]
[1767854106738,6.6596,135.31,135.25,1.91599379]
[1767854107944,5.33831139,135.3,135.25,1.91599379]
[1767854108143,6.6596,135.31,135.25,1.91599379]
[1767854108339,5.33833595,135.3,135.26,0.31719731]
[1767854108539,6.6596,135.31,135.26,0.31719731]
[1767854108733,103.573,135.33,135.26,0.31719731]
[1767854108935,10.69266543,135.32,135.26,0.31719731]
[1767854109134,17.35226543,135.31,135.26,0.31719731]
[1767854109432,6.6596,135.31,135.26,0.31719731]
[1767854109632,6.6596,135.31,135.28,0.05396077]
[1767854109844,125.93808986,135.38,135.28,0.05396077]
[1767854109845,6.6584,135.33,135.28,0.05396077]
[1767854110445,6.6583,135.33,135.28,0.05396077]
[1767854111538,10.69186472,135.32,135.25,0.31719731]
[1767854111739,0.04695044,135.32,135.25,0.31719731]
[1767854112135,6.70595044,135.32,135.25,0.31719731]
[1767854114551,12.01177577,135.31,135.25,0.31719731]
[1767854114847,6.6592,135.31,135.25,0.31719731]
[1767854116444,105.45623593,135.31,135.23,0.31719731]
[1767854116756,1.86793593,135.29,135.21,0.31719731]
[1767854117341,0.04917636,135.26,135.21,0.31719731]
[1767854117742,0.04917636,135.26,135.22,0.31719731]
[1767854120150,0.04917636,135.26,135.21,87.36]
[1767854120444,0.04917636,135.26,135.21,87.67719731]
[1767854121151,0.04917636,135.26,135.22,0.31719731]
[1767854124953,103.5883,135.31,135.22,0.31719731]
[1767854125150,5.34842999,135.3,135.23,0.054775]
[1767854125344,5.34842999,135.29,135.23,0.37197231]
[1767854125549,192.85113593,135.32,135.23,0.37197231]
[1767854125752,5.34841129,135.31,135.23,0.37197231]
[1767854125952,5.34841129,135.3,135.23,0.31719731]
[1767854126154,12.00861129,135.29,135.23,0.31719731]
[1767854126346,6.6602,135.29,135.26,0.05292458]
[1767854128354,6.71039793,135.29,135.23,0.31719731]
[1767854130152,6.6607,135.28,135.23,0.31719731]
[1767854130350,0.05019793,135.29,135.2,0.31719731]
[1767854130559,110.8269408,135.28,135.2,0.31719731]
[1767854130753,5.34730487,135.27,135.2,0.31719731]
[1767854130954,6.6615,135.27,135.2,0.31719731]
[1767854131349,0.04843667,135.25,135.2,0.31719731]
[1767854131653,0.04843667,135.25,135.18,0.31719731]
[1767854131857,0.04843667,135.25,135.18,87.67719731]
[1767854132444,0.04843667,135.25,135.19,0.32585289]
[1767854132959,6.71063667,135.25,135.19,0.32585289]
[1767854133160,0.04843667,135.25,135.15,0.32585289]
[1767854133358,7.21086367,135.24,135.16,0.32585289]
[1767854133558,5.34292774,135.23,135.16,0.32585289]
[1767854133860,1.86793593,135.24,135.16,0.32585289]
[1767854134159,0.05385736,135.21,135.16,0.32585289]
[1767854134359,1.86793593,135.26,135.18,0.3781349]
[1767854134661,5.71448748,135.25,135.18,0.3781349]
[1767854134858,5.71448748,135.24,135.18,0.32585289]
[1767854135160,87.42,135.27,135.18,0.32585289]
[1767854135463,5.71395291,135.26,135.18,0.32585289]
[1767854135654,5.71395291,135.25,135.21,0.05659655]
[1767854135856,8.52863593,135.28,135.21,0.05659655]
[1767854136054,5.71425381,135.27,135.21,0.05659655]
[1767854136363,5.71425381,135.26,135.21,0.05659655]
[1767854136660,8.52863593,135.28,135.21,0.05659655]
[1767854136661,5.71425381,135.25,135.21,0.05659655]
[1767854136867,8.52863593,135.28,135.21,0.05659655]
[1767854137161,5.71400045,135.27,135.21,0.05659655]
[1767854137359,5.71400045,135.26,135.21,0.38244944]
[1767854137655,5.71395675,135.25,135.21,0.38244944]
[1767854137860,6.6612,135.27,135.21,0.38244944]
[1767854138049,5.71395675,135.26,135.21,0.38244944]
[1767854138252,5.71395675,135.25,135.21,0.38244944]
[1767854138546,6.6612,135.27,135.21,0.38244944]
[1767854138751,5.71410204,135.26,135.21,0.38244944]
[1767854138955,5.71410204,135.25,135.21,0.38244944]
[1767854139253,6.6612,135.27,135.21,0.38244944]
[1767854139545,5.71444564,135.26,135.21,0.38244944]
[1767854139749,5.71444564,135.25,135.21,0.38244944]
[1767854139949,6.6612,135.27,135.21,0.38244944]
[1767854140151,5.71444567,135.26,135.21,0.38244944]
[1767854140351,5.71444567,135.25,135.21,0.38244944]
[1767854140558,6.6612,135.27,135.21,0.38244944]
[1767854140755,5.71492702,135.26,135.21,0.38244944]
[1767854141058,6.6603,135.29,135.21,0.38244944]
[1767854141260,6.6603,135.29,135.22,0.32585289]
[1767854141470,105.45153593,135.32,135.23,0.32585289]
[1767854141758,5.34297277,135.31,135.23,0.32585289]
[1767854142063,12.00267277,135.3,135.26,0.05479027]
[1767854142262,6.6597,135.3,135.26,0.05479027]
[1767854142568,6.659,135.32,135.26,0.05479027]
[1767854143370,190.9891,135.34,135.26,0.05479027]
[1767854143371,6.6593,135.31,135.26,0.05479027]
[1767854145367,8.52643593,135.33,135.26,0.05479027]
[1767854145567,5.34295699,135.32,135.26,0.05479027]
[1767854145860,16.21263195,135.36,135.27,2.19378882]
[1767854146064,5.34418396,135.35,135.27,2.19378882]
[1767854146264,5.3426456,135.34,135.27,2.19378882]
[1767854146465,16.21263195,135.36,135.27,2.19378882]
[1767854146668,12.00028592,135.35,135.3,0.05329247]
[1767854146964,6.6574,135.35,135.3,0.05329247]
[1767854150168,16.21263195,135.36,135.3,0.05329247]
[1767854151165,16.21263195,135.36,135.3,0.37914536]
[1767854153066,5.67024454,135.35,135.3,0.37914536]
[1767854153266,16.21263195,135.36,135.3,0.37914536]
[1767854155174,16.21263195,135.36,135.3,7.03854536]
[1767854155374,16.21263195,135.36,135.31,0.32585289]
[1767854155770,5.66623882,135.35,135.31,0.32585289]
[1767854156074,16.21263195,135.36,135.31,0.32585289]
[1767854156274,5.66623882,135.35,135.31,0.32585289]
[1767854156468,16.21263195,135.36,135.31,0.32585289]
[1767854156680,5.66504853,135.35,135.31,0.32585289]
[1767854156872,16.21263195,135.36,135.31,0.32585289]
[1767854158978,16.21263195,135.36,135.3,0.05329247]
[1767854159177,5.66255131,135.35,135.3,0.05329247]
[1767854159379,16.21263195,135.36,135.3,0.05329247]
[1767854159680,5.66157473,135.35,135.3,0.05329247]
[1767854159974,16.21263195,135.36,135.3,0.05329247]
[1767854160174,5.66129668,135.35,135.3,0.05329247]
[1767854160379,22.86943195,135.36,135.3,0.05329247]
[1767854160572,5.66079403,135.35,135.3,0.05329247]
[1767854160876,22.86943195,135.36,135.3,0.05329247]
[1767854161082,1.86793593,135.32,135.21,103.98805289]
[1767854161272,1.86793593,135.3,135.21,0.32585289]
[1767854161585,1.86793593,135.28,135.21,0.32585289]
[1767854161776,1.86793593,135.28,135.19,87.64868114]
[1767854161987,1.86793593,135.26,135.17,0.33043106]
[1767854162174,5.65834504,135.25,135.17,0.33043106]
[1767854162479,0.04887522,135.23,135.17,0.33043106]
[1767854163179,0.04887522,135.23,135.15,0.33043106]
[1767854164677,0.04887522,135.23,135.15,2.19836699]
[1767854164882,0.04887522,135.23,135.16,0.33043106]
[1767854165885,1.91681115,135.23,135.16,0.33043106]
[1767854166586,1.91681115,135.23,135.14,87.67043106]
[1767854166587,6.71217522,135.23,135.14,87.67043106]
[1767854166978,6.6633,135.23,135.14,87.67043106]
[1767854167483,0.05450498,135.2,135.14,87.67043106]
[1767854167687,0.05450498,135.2,135.15,0.33043106]
[1767854172189,0.05450498,135.2,135.14,87.34]
[1767854172578,0.05450498,135.2,135.14,94.0074]
[1767854172879,0.05450498,135.2,135.14,87.34]
[1767854173079,0.05450498,135.2,135.13,87.38]
[1767854173480,6.6649,135.2,135.13,87.38]
[1767854173680,6.6649,135.2,135.08,106.68011076]
[1767854173881,0.0469608,135.18,135.09,87.38]
[1767854174081,0.0469608,135.18,135.1,6.6692]
[1767854174382,6.6655,135.19,135.11,0.33043106]
[1767854175078,0.05125946,135.16,135.11,0.33043106]
[1767854175685,0.05125946,135.16,135.11,87.73043106]
[1767854175885,0.05125946,135.16,135.11,0.33043106]
[1767854177080,0.05125946,135.16,135.09,0.33043106]
[1767854177481,103.6945,135.18,135.09,0.33043106]
[1767854177690,106.57591076,135.23,135.09,0.33043106]
[1767854177987,93.06243127,135.22,135.09,0.33043106]
[1767854178193,6.6654,135.19,135.12,0.05582778]
[1767854178786,6.6659,135.18,135.11,0.33043106]
[1767854179198,87.44,135.22,135.11,0.33043106]
[1767854179383,87.44,135.22,135.13,0.38096282]
[1767854179589,6.6639,135.22,135.14,0.33043106]
[1767854180094,6.6639,135.22,135.14,87.73043106]
[1767854180404,6.6639,135.22,135.17,0.0498209]
[1767854180589,103.636,135.25,135.17,0.0498209]
[1767854181192,6.6638,135.22,135.17,0.0498209]
[1767854181698,6.663,135.24,135.17,0.0498209]
[1767854181892,103.6353,135.25,135.17,0.0498209]
[1767854182094,109.25969651,135.24,135.14,87.73043106]
[1767854182296,103.6418,135.24,135.14,87.73043106]
[1767854182497,103.6575,135.22,135.12,0.33043106]
[1767854182795,103.6519,135.23,135.12,0.33043106]
[1767854182990,0.05603287,135.2,135.14,0.33043106]
[1767854184000,0.05603287,135.2,135.15,0.33043106]
[1767854184890,0.05603287,135.2,135.15,6.99743106]
[1767854185393,0.05603287,135.2,135.15,0.33043106]
[1767854187500,6.72073287,135.2,135.15,0.33043106]
[1767854187702,6.72073287,135.2,135.13,0.33043106]
[1767854189404,6.6652,135.19,135.13,0.33043106]
[1767854189803,0.05603287,135.2,135.13,0.33043106]
[1767854190000,6.6655,135.19,135.13,0.33043106]
[1767854190610,0.05603287,135.2,135.13,0.33043106]
[1767854191111,0.05603287,135.2,135.14,0.33043106]
[1767854191610,0.05603287,135.2,135.15,0.33043106]
[1767854196501,6.6626,135.25,135.18,0.3321299]
[1767854197712,6.6613,135.27,135.18,0.3321299]
[1767854197916,6.6613,135.27,135.2,0.05436483]
[1767854198306,103.6339,135.25,135.13,0.3321299]
[1767854198515,5.63272981,135.24,135.14,0.3321299]
[1767854198715,5.63272981,135.23,135.14,0.3321299]
[1767854198915,103.68453153,135.25,135.14,0.3321299]
[1767854199118,5.63223302,135.24,135.14,0.3321299]
[1767854199320,5.63223302,135.23,135.14,0.3321299]
[1767854199515,5.63223302,135.22,135.14,0.3321299]
[1767854199724,0.04845081,135.2,135.14,6.9993299]
[1767854201507,0.04845081,135.2,135.14,0.3321299]
[1767854202423,0.04845081,135.2,135.15,0.3321299]
[1767854203211,5.65633481,135.19,135.15,0.3321299]
[1767854203415,0.04845081,135.2,135.15,0.3321299]
[1767854203625,5.65677147,135.19,135.15,0.3321299]
[1767854203917,0.04845081,135.2,135.15,0.3321299]
[1767854204117,5.65696241,135.19,135.15,0.3321299]
[1767854204322,5.65696241,135.18,135.15,0.3321299]